[Event "FIDE Open Sachove Univerzity QCC"]
[Site "Ceske Budejovice"]
[Date "2020.07.07"]
[Round "7.1"]
[White "Trcka, Bohdan"]
[Black "Dobsinsky, Petr"]
[Result "1-0"]
[ECO "B21"]
[WhiteElo "1528"]
[BlackElo "1248"]
[Annotator "NA"]
[PlyCount "25"]
[EventDate "2020.07.01"]
[EventType "swiss"]
[EventCountry "CZE"]
[SourceTitle "playchess.com"]
[Source "ChessBase"]
[SourceQuality "1"]
[TimeControl "40/5400+30:1800+30"]

1. e4 {[%emt 0:19:12]} c5 {[%emt 0:00:00]} 2. f4 {[%emt 0:00:03]} Nf6 {[%emt 0:00:00]} 3. d3 {[%emt 0:00:07]} d6 {[%emt 0:00:41]} 4. Be2 {[%emt 0:00:05]} Nc6 {[%emt 0:00:35]} 5. c3 {[%emt 0:00:01]} g6 {[%emt 0:00:17]} 6. g4 {[%emt 0:00:19]} e5 {[%emt 0:02:12]} 7. g5 {[%emt 0:00:16]} Nd7 {[%emt 0:00:11]} 8. f5 {[%emt 0:00:19]} gxf5 {[%emt 0:00:33]} 9. exf5 {[%emt 0:00:03]} h6 {[%emt 0:00:50]} 10. h4 {[%emt 0:00:41]} f6 {[%emt 0:01:21]} 11. Bh5+ {[%emt 0:00:10]} Ke7 {[%emt 0:01:02]} 12. Qb3 {[%emt 0:00:05]} Nb6 {[%emt 0:00:42]} 13. Qf7# 1-0

[Event "FIDE Open Sachove Univerzity QCC"]
[Site "Ceske Budejovice"]
[Date "2020.07.07"]
[Round "7.2"]
[White "Kotleska, Roman"]
[Black "Titera, Libor"]
[Result "1/2-1/2"]
[ECO "C08"]
[WhiteElo "1521"]
[BlackElo "1854"]
[Annotator "NA RC"]
[PlyCount "122"]
[EventDate "2020.07.01"]
[EventType "swiss"]
[EventCountry "CZE"]
[SourceTitle "playchess.com"]
[Source "ChessBase"]
[SourceQuality "1"]
[TimeControl "40/5400+30:1800+30"]

{[%evp 8,122,18,10,8,18,32767,8,32767,8,0,0,0,0,21,7,13,8,27,0,32767,32767,28,0,32767,-10,18,-15,0,0,-7,-17,-2,-11,-4,-58,32767,32767,32767,32767,32767,-81,32767,32767,-68,-75,32767,32767,32767,32767,32767,32767,-101,32767,32767,32767,-101,32767,-118,-111,-118,32767,32767,32767,32767,32767,32767,32767,-156,32767,32767,32767,32767,32767,32767,-291,32767,32767,32767,32767,32767,32767,32767,32767,-68,-80,-108,-119,32767,-143,-25,32767,-4,-18,-8,-87,-48,32767,32767,32767,-54,-52,32767,32767,32767,32767,32767,32767,-52,-52,-29,-45,0,-71,-60,-329,0]} 1. e4 {[%emt 0:00:00]} e6 {[%emt 0:01:05]} 2. d4 {[%emt 0:00:00]} d5 {[%emt 0:00:13]} 3. Nd2 {[%emt 0:00:21]} c5 {[%emt 0:01:23]} 4. exd5 {[%emt 0:00:32]} exd5 {[%emt 0:00:09]} 5. Ngf3 {[%emt 0:00:57]} Nf6 {[%emt 0:00:09]} 6. Bb5+ {[%emt 0:01:09]} Bd7 {[%emt 0:00:09]} 7. Qe2+ {[%emt 0:00:57]} Be7 {[%emt 0:00:35]} 8. dxc5 {[%emt 0:00:54]} O-O {[%emt 0:01:06]} 9. Nb3 {[%emt 0:00:21]} Re8 {[%emt 0:02:38]} 10. Be3 {[%emt 0:01:21]} Bxc5 {[%emt 0:05:15] Pin} 11. Bxd7 {[%emt 0:03:43]} Nbxd7 {[%emt 0:01:11]} 12. Nxc5 {[%emt 0:00:32]} Nxc5 {[%emt 0:03:08]} 13. O-O-O {[%emt 0:06:21] C08: French Tarrasch: 3...c5 4 exd5 exd5 sidelines.} Qa5 {[%emt 0:05:29]} 14. Kb1 {[%emt 0:00:44]} Rac8 {[%emt 0:01:07] [#]} 15. Qd2 $146 {[%emt 0:01:18]} ({Predecessor:} 15. Nd4 Nfe4 16. Nb3 Nxb3 17. cxb3 Qb4 18. Qd3 a5 19. Qxd5 a4 20. Rd4 Qe7 21. bxa4 {1-0 (41) Meribanov,V (2385)-Zhuk,I (2105) Minsk 2017}) 15... Qc7 {[%emt 0:08:23]} 16. Rc1 {[%emt 0:13:45]} a5 {[%emt 0:07:15]} 17. Bxc5 {[%emt 0:06:32]} Qxc5 {[%emt 0:00:11]} 18. Qd4 {[%emt 0:00:30]} Re2 {[%emt 0:07:26]} 19. Qxc5 {[%emt 0:00:18]} Rxc5 {[%emt 0:00:08]} 20. Rhf1 {[%emt 0:05:43]} Ne4 {[%emt 0:03:31]} 21. c3 {[%emt 0:02:20]} Rxf2 {[%emt 0:04:29]} 22. Rxf2 {[%emt 0:00:18]} Nxf2 {[%emt 0:00:06]} 23. Re1 {[%emt 0:02:56]} Ne4 {[%emt 0:04:10]} 24. Ng5 {[%emt 0:01:34] Back Rank} f5 {[%emt 0:01:18]} 25. Ne6 {[%emt 0:00:42]} Rc8 {[%emt 0:01:41]} 26. Rd1 {[%emt 0:00:48]} Nf6 {[%emt 0:08:52]} 27. Nf4 {[%emt 0:00:21]} Rc5 {[%emt 0:02:35]} 28. Ne6 {[%emt 0:08:47]} Rc4 {[%emt 0:01:23]} 29. Nd4 {[%emt 0:00:29]} g6 {[%emt 0:00:52]} 30. Kc2 {[%emt 0:00:45]} Kf7 {[%emt 0:04:31]} 31. Kd3 {[%emt 0:03:52]} Ne4 {[%emt 0:01:16]} 32. Rf1 {[%emt 0:00:56]} Nc5+ {[%emt 0:03:58]} 33. Kc2 {[%emt 0:00:55]} Ne6 {[%emt 0:02:20]} 34. Nb5 {[%emt 0:06:35]} Kf6 {[%emt 0:01:58]} 35. Kd3 {[%emt 0:02:58]} Nf4+ {[%emt 0:01:27]} 36. Kd2 {[%emt 0:00:20]} Nxg2 {[%emt 0:00:34]} 37. Nd4 {[%emt 0:00:37]} Ke5 {[%emt 0:10:42]} (37... Rc7 $19 38. Nc2 g5) 38. Nf3+ {[%emt 0:03:20]} Kd6 {[%emt 0:01:42]} 39. Nd4 {[%emt 0:02:31]} Ke5 {[%emt 0:01:42]} 40. Nf3+ {[%emt 0:00:26]} Kf6 {[%emt 0:01:21]} 41. Nd4 {[%emt 0:30:16]} Nh4 {[%emt 0:09:42]} 42. Rf4 {[%emt 0:00:00]} g5 {[%emt 0:00:08]} 43. Rf2 {[%emt 0:00:00]} f4 {[%emt 0:00:18]} 44. Re2 {[%emt 0:00:00]} f3 {[%emt 0:03:07]} 45. Re6+ {[%emt 0:00:00]} Kf7 {[%emt 0:00:25]} 46. Re5 {[%emt 0:00:00] [#]} Kg6 $1 {[%emt 0:03:07]} 47. Rxd5 {[%emt 0:00:00]} Rc7 {[%emt 0:00:19]} 48. Ke3 {[%emt 0:00:00]} g4 {[%emt 0:01:44]} (48... Rf7 $17 49. Kf2 g4 $1 $19 50. Rd6+ (50. Rxa5 Nf5) 50... Rf6) 49. Kf2 {[%emt 0:00:00] [#]} Ng2 $2 {[%emt 0:00:43]} 50. h3 {[%emt 0:00:00]} h5 {[%emt 0:01:10]} 51. Rxa5 {[%emt 0:00:00]} (51. Rd6+ $11 {remains equal.} Kh7 52. hxg4 hxg4 53. Nf5) 51... Re7 {[%emt 0:03:15]} 52. hxg4 {[%emt 0:00:00]} hxg4 {[%emt 0:00:09]} 53. Rb5 {[%emt 0:00:00]} Nf4 {[%emt 0:01:05]} 54. Nxf3 {[%emt 0:00:46]} gxf3 {[%emt 0:00:14]} 55. Kxf3 {[%emt 0:00:05]} Nd3 {[%emt 0:00:51]} 56. a4 {[%emt 0:00:34]} Kf7 {[%emt 0:01:45]} 57. a5 {[%emt 0:00:50]} Ke8 {[%emt 0:01:13]} 58. b4 {[%emt 0:02:35]} Ne1+ {[%emt 0:03:31]} 59. Kf4 {[%emt 0:02:02]} Kd8 {[%emt 0:00:20]} 60. c4 {[%emt 0:00:56]} Nc2 {[%emt 0:01:02]} 61. c5 $19 {[%emt 0:00:56]} ({White should try} 61. Rd5+ $15 Kc7 62. b5) 61... Nd4 $2 {[%emt 0:02:07]} (61... Ne3 $19 62. Kg5 Nd5) 1/2-1/2

[Event "FIDE Open Sachove Univerzity QCC"]
[Site "Ceske Budejovice"]
[Date "2020.07.07"]
[Round "7.2"]
[White "Kral, Ladislav"]
[Black "Komarek, Tobias"]
[Result "1-0"]
[ECO "C26"]
[WhiteElo "1493"]
[BlackElo "1246"]
[Annotator "NA"]
[PlyCount "129"]
[EventDate "2020.07.01"]
[EventType "swiss"]
[EventCountry "CZE"]
[SourceTitle "playchess.com"]
[Source "ChessBase"]
[SourceQuality "1"]
[TimeControl "40/5400+30:1800+30"]

1. e4 {[%emt 0:00:00]} e5 {[%emt 0:00:00]} 2. Nc3 {[%emt 0:00:00]} Nf6 {[%emt 0:00:00]} 3. f4 {[%emt 0:00:00]} d6 {[%emt 0:01:31]} 4. Nf3 {[%emt 0:00:37]} Nbd7 {[%emt 0:01:20]} 5. Bc4 {[%emt 0:01:43]} exf4 {[%emt 0:34:43]} 6. d3 {[%emt 0:01:30]} Nb6 {[%emt 0:02:29]} 7. Bb3 {[%emt 0:02:00]} Be7 {[%emt 0:02:40]} 8. Bxf4 {[%emt 0:00:43]} O-O {[%emt 0:03:46]} 9. O-O {[%emt 0:01:11]} Be6 {[%emt 0:04:11]} 10. Nd4 {[%emt 0:11:09]} Bg4 {[%emt 0:02:31]} 11. Qe1 {[%emt 0:01:55]} Qd7 {[%emt 0:10:34]} 12. Be3 {[%emt 0:02:50]} Be6 {[%emt 0:06:24]} 13. Nxe6 {[%emt 0:03:20]} fxe6 {[%emt 0:00:28]} 14. Qe2 {[%emt 0:05:26]} Kh8 {[%emt 0:01:06]} 15. h3 {[%emt 0:10:37]} h6 {[%emt 0:07:30]} 16. Rad1 {[%emt 0:02:58]} e5 {[%emt 0:01:06]} 17. d4 {[%emt 0:03:13]} exd4 {[%emt 0:00:12]} 18. Bxd4 {[%emt 0:01:26]} Rae8 {[%emt 0:03:46]} 19. Qd2 {[%emt 0:04:37]} Bd8 {[%emt 0:05:57]} 20. Bxb6 {[%emt 0:13:04]} axb6 {[%emt 0:00:27]} 21. Ba4 {[%emt 0:00:51]} c6 {[%emt 0:02:34]} 22. Qxd6 {[%emt 0:01:12]} Qxd6 {[%emt 0:00:50]} 23. Rxd6 {[%emt 0:00:14]} Bc7 {[%emt 0:04:09]} 24. Rd3 {[%emt 0:05:18]} Rd8 {[%emt 0:00:33]} 25. Rfd1 {[%emt 0:02:18]} Rxd3 {[%emt 0:00:34]} 26. cxd3 {[%emt 0:03:43]} Rd8 {[%emt 0:01:03]} 27. d4 {[%emt 0:03:00]} b5 {[%emt 0:00:47]} 28. Bc2 {[%emt 0:01:21]} Bb6 {[%emt 0:00:48]} 29. Ne2 {[%emt 0:02:08]} Re8 {[%emt 0:01:27]} 30. Ng3 {[%emt 0:04:46]} Rd8 {[%emt 0:00:28]} 31. Ne2 {[%emt 0:01:37]} Re8 {[%emt 0:00:14]} 32. e5 {[%emt 0:00:26]} Rxe5 {[%emt 0:00:23]} 33. Kf1 {[%emt 0:01:14]} Rd5 {[%emt 0:00:08]} 34. Kf2 {[%emt 0:03:44]} c5 {[%emt 0:01:01]} 35. dxc5 {[%emt 0:01:06]} Bxc5+ {[%emt 0:00:10]} 36. Kf3 {[%emt 0:00:26]} Rxd1 {[%emt 0:00:08]} 37. Bxd1 {[%emt 0:00:17]} Bd6 {[%emt 0:00:14]} 38. Ke3 {[%emt 0:01:12]} Be5 {[%emt 0:00:20]} 39. b3 {[%emt 0:00:51]} Kg8 {[%emt 0:00:08]} 40. Nd4 {[%emt 0:01:26]} b4 {[%emt 0:00:43]} 41. Bf3 {[%emt 0:31:37]} b6 {[%emt 0:30:21]} 42. Kd3 {[%emt 0:00:51]} Nd7 {[%emt 0:01:14]} 43. Nc6 {[%emt 0:00:00]} Bd6 {[%emt 0:00:00]} 44. Kc4 {[%emt 0:00:00]} Bc5 {[%emt 0:00:00]} 45. Nxb4 {[%emt 0:00:00]} Ne5+ {[%emt 0:00:00]} 46. Kb5 {[%emt 0:00:00]} Nxf3 {[%emt 0:00:00]} 47. gxf3 {[%emt 0:00:00]} Kf7 {[%emt 0:00:00]} 48. Nd5 {[%emt 0:00:00]} Ke6 {[%emt 0:00:00]} 49. Nxb6 {[%emt 0:00:00]} Bf2 {[%emt 0:00:00]} 50. a4 {[%emt 0:00:00]} h5 {[%emt 0:00:00]} 51. a5 {[%emt 0:00:00]} Kf5 {[%emt 0:00:00]} 52. a6 {[%emt 0:00:00]} Kf4 {[%emt 0:00:00]} 53. a7 {[%emt 0:00:00]} g5 {[%emt 0:00:00]} 54. a8=Q {[%emt 0:00:00]} Kg3 55. Qe4 {[%emt 0:00:00]} Kxh3 {[%emt 0:00:00]} 56. Nd5 {[%emt 0:00:00]} g4 {[%emt 0:00:00]} 57. fxg4 {[%emt 0:00:00]} hxg4 {[%emt 0:00:00]} 58. Qh1+ {[%emt 0:00:00]} Kg3 {[%emt 0:00:00]} 59. b4 {[%emt 0:00:00]} Bd4 {[%emt 0:00:00]} 60. Kc6 {[%emt 0:00:00]} Kf2 {[%emt 0:00:00]} 61. Qe4 {[%emt 0:00:00]} Ba7 {[%emt 0:00:00]} 62. Qxg4 {[%emt 0:00:00]} Ke1 63. Qg2 Bf2 {[%emt 0:00:00]} 64. Nc3 {[%emt 0:00:00]} Bc5 {[%emt 0:00:00]} 65. Qe2# 1-0

[Event "FIDE Open Sachove Univerzity QCC"]
[Site "Ceske Budejovice"]
[Date "2020.07.07"]
[Round "7.3"]
[White "Molnar, Ladislav"]
[Black "Hlavsa, Filip"]
[Result "0-1"]
[ECO "B07"]
[WhiteElo "1731"]
[BlackElo "1894"]
[Annotator "NA"]
[PlyCount "48"]
[EventDate "2020.07.01"]
[EventType "swiss"]
[EventCountry "CZE"]
[SourceTitle "playchess.com"]
[Source "ChessBase"]
[SourceQuality "1"]
[TimeControl "40/5400+30:1800+30"]

{[%evp 8,38,22,44,32767,103,109,32767,32767,88,122,32767,0,32767,-40,-28,-29,32767,-20,-22,32767,32767,32767,32767,62,-6,32767,-48,32767,32767,-61,32767,-14]} 1. e4 {[%emt 0:00:00]} d6 {[%emt 0:00:00]} 2. d4 {[%emt 0:00:03]} Nf6 {[%emt 0:00:02]} 3. Nc3 {[%emt 0:00:10]} Nbd7 {[%emt 0:00:08]} 4. f4 {[%emt 0:00:28]} e5 {[%emt 0:00:06]} 5. Nf3 {[%emt 0:00:17]} c6 {[%emt 0:02:22]} 6. dxe5 {[%emt 0:05:45]} dxe5 {[%emt 0:03:56]} 7. fxe5 {[%emt 0:01:53]} Ng4 {[%emt 0:00:30] B07: Pirc Defence: Miscellaneous Systems.} 8. e6 $1 {[%emt 0:02:22]} fxe6 {[%emt 0:01:28]} 9. h3 {[%emt 0:05:01]} Nge5 {[%emt 0:04:06] [#]} 10. Bf4 $146 {[%emt 0:11:15]} ({Predecessor:} 10. Be3 Be7 11. Qe2 Bf6 12. O-O-O Qe7 13. h4 b6 14. Kb1 Bb7 15. Nd4 b5 16. g4 {½-½ (80) Janssen,R (2475)-Bosch,J (2454) Leeuwarden 2002}) 10... Qf6 {[%emt 0:17:14]} 11. Bh2 {[%emt 0:17:27]} Bb4 {[%emt 0:07:29]} 12. Nxe5 {[%emt 0:12:20]} Nxe5 {[%emt 0:01:17]} 13. Qh5+ {[%emt 0:00:44]} Nf7 {[%emt 0:10:04]} 14. e5 {[%emt 0:08:49]} Qf5 {[%emt 0:04:46]} 15. Qe2 {[%emt 0:05:39]} Qg5 {[%emt 0:14:27]} 16. Qd2 {[%emt 0:07:11]} (16. Qe4 $5 {[%cal Re4b4]} Bc5 17. Bd3 $16) 16... Qh4+ {[%emt 0:03:39]} 17. Kd1 {[%emt 0:02:19]} O-O {[%emt 0:02:03]} 18. a3 {[%emt 0:01:26]} Ba5 {[%emt 0:05:34]} 19. Bd3 {[%emt 0:02:39]} Rd8 $11 {[%emt 0:01:28]} 20. Rf1 {[%emt 0:03:05]} Qh5+ {[%emt 0:09:38]} 21. Kc1 {[%emt 0:02:50]} Nxe5 {[%emt 0:01:09]} 22. Bxe5 {[%emt 0:00:15]} Qxe5 {[%emt 0:00:08]} 23. Bxh7+ {[%emt 0:01:11]} Kxh7 {[%emt 0:00:10]} 24. Qxd8 {[%emt 0:00:27]} Bxd8 {[%emt 0:00:04]} 0-1

[Event "FIDE Open Sachove Univerzity QCC"]
[Site "Ceske Budejovice"]
[Date "2020.07.07"]
[Round "7.3"]
[White "Zezula, Matej"]
[Black "Zezula, Jakub"]
[Result "0-1"]
[ECO "B01"]
[WhiteElo "1078"]
[BlackElo "1434"]
[Annotator "NA"]
[PlyCount "68"]
[EventDate "2020.07.01"]
[EventType "swiss"]
[EventCountry "CZE"]
[SourceTitle "playchess.com"]
[Source "ChessBase"]
[SourceQuality "1"]
[TimeControl "40/5400+30:1800+30"]

1. e4 {[%emt 0:00:00]} d5 {[%emt 0:00:00]} 2. exd5 {[%emt 0:00:00]} Qxd5 {[%emt 0:00:00]} 3. Nf3 {[%emt 0:00:12]} Bg4 {[%emt 0:00:33]} 4. Be2 {[%emt 0:01:22]} Nf6 {[%emt 0:00:15]} 5. Nc3 {[%emt 0:00:23]} Qd6 {[%emt 0:00:30]} 6. d4 {[%emt 0:00:34]} c6 {[%emt 0:00:13]} 7. Bg5 {[%emt 0:01:59]} e6 {[%emt 0:00:57]} 8. Qd2 {[%emt 0:01:55]} Qc7 {[%emt 0:00:29]} 9. h3 {[%emt 0:00:45]} Bh5 {[%emt 0:01:22]} 10. O-O-O {[%emt 0:00:54]} Nbd7 {[%emt 0:01:04]} 11. Rhe1 {[%emt 0:02:16]} O-O-O {[%emt 0:01:35]} 12. g4 {[%emt 0:02:00]} Bg6 {[%emt 0:00:11]} 13. Bc4 {[%emt 0:01:16]} h6 {[%emt 0:04:37]} 14. Bf4 {[%emt 0:07:22]} Bd6 {[%emt 0:08:00]} 15. Bxd6 {[%emt 0:02:44]} Qxd6 {[%emt 0:00:20]} 16. Nh4 {[%emt 0:12:20]} Bh7 {[%emt 0:03:21]} 17. f4 {[%emt 0:02:24]} Nb6 {[%emt 0:10:46]} 18. Bb3 {[%emt 0:01:18]} Rhg8 {[%emt 0:03:22]} 19. g5 {[%emt 0:02:17]} hxg5 {[%emt 0:01:04]} 20. fxg5 Nfd5 21. Bxd5 {[%emt 0:03:42]} exd5 {[%emt 0:05:06]} 22. b3 {[%emt 0:10:34]} Rh8 {[%emt 0:11:29]} 23. Nf3 {[%emt 0:01:22]} f6 {[%emt 0:00:42]} 24. h4 {[%emt 0:02:44]} Rde8 {[%emt 0:03:07]} 25. Qg2 {[%emt 0:07:14]} Qf4+ {[%emt 0:03:22]} 26. Kb1 {[%emt 0:00:33]} Be4 {[%emt 0:02:19]} 27. Nxe4 {[%emt 0:01:35]} dxe4 {[%emt 0:00:11]} 28. Nd2 {[%emt 0:01:54]} Nd5 {[%emt 0:03:33]} 29. Kb2 {[%emt 0:03:27]} Rxh4 {[%emt 0:06:39]} 30. Nc4 {[%emt 0:02:43]} b5 {[%emt 0:03:50]} 31. Nd2 {[%emt 0:03:45]} Rh2 {[%emt 0:03:15]} 32. Rxe4 {[%emt 0:02:22]} Rxg2 {[%emt 0:00:27]} 33. Rxe8+ Kd7 34. Re4 Rxd2 0-1

[Event "FIDE Open Sachove Univerzity QCC"]
[Site "Ceske Budejovice"]
[Date "2020.07.07"]
[Round "7.4"]
[White "Zelbova, Lada"]
[Black "Simacek, Vaclav"]
[Result "1-0"]
[ECO "A43"]
[WhiteElo "1618"]
[BlackElo "1819"]
[Annotator "NA"]
[PlyCount "95"]
[EventDate "2020.07.01"]
[EventType "swiss"]
[EventCountry "CZE"]
[SourceTitle "playchess.com"]
[Source "ChessBase"]
[SourceQuality "1"]
[TimeControl "40/5400+30:1800+30"]

1. d4 {[%emt 0:00:00]} Nf6 {[%emt 0:00:00]} 2. Nf3 {[%emt 0:00:00]} c5 {[%emt 0:00:34]} 3. d5 {[%emt 0:00:06]} c4 {[%emt 0:00:49]} 4. Nc3 {[%emt 0:01:53]} a6 {[%emt 0:00:25]} 5. a4 {[%emt 0:02:49]} e6 {[%emt 0:00:48]} 6. e4 {[%emt 0:03:08] [#] A43: Schmid Benoni.} Bb4 $146 {[%emt 0:00:47]} ({Predecessor:} 6... exd5 7. exd5 Qc7 8. Qe2+ Be7 9. Qxc4 Qxc4 10. Bxc4 Bb4 11. Bd2 O-O 12. O-O d6 {1-0 (63) Ditscher,W-Schmitt,H Fischbach 1996}) 7. Bg5 {[%emt 0:11:48]} h6 $1 {[%emt 0:00:44]} 8. Bxf6 {[%emt 0:01:10]} Qxf6 {[%emt 0:00:10]} 9. Qd4 {[%emt 0:04:49]} Qxd4 {[%emt 0:03:51]} 10. Nxd4 {[%emt 0:00:06]} O-O {[%emt 0:01:01]} 11. Bxc4 {[%emt 0:02:24]} e5 {[%emt 0:00:23]} 12. Nde2 {[%emt 0:01:53]} d6 {[%emt 0:00:15]} 13. O-O {[%emt 0:01:31]} Nd7 {[%emt 0:00:46]} 14. Na2 {[%emt 0:02:27]} Bc5 {[%emt 0:01:29]} 15. b4 {[%emt 0:04:30]} Ba7 {[%emt 0:00:13]} 16. a5 {[%emt 0:03:55]} b5 {[%emt 0:00:59]} 17. Bd3 {[%emt 0:06:18]} ({White should try} 17. axb6 $1 $16 Nxb6 18. Bd3) 17... g6 {[%emt 0:01:37]} 18. Kh1 {[%emt 0:01:06]} (18. c4 $14) 18... f5 $1 {[%emt 0:02:34]} 19. f3 {[%emt 0:00:46]} f4 {[%emt 0:00:03]} (19... fxe4 $11 {keeps the balance.} 20. fxe4 (20. Bxe4 Kg7 $11) 20... Rxf1+ 21. Rxf1 Kg7) 20. Rac1 {[%emt 0:04:15]} Be3 {[%emt 0:00:17]} 21. Rb1 {[%emt 0:00:30]} Nf6 {[%emt 0:00:29]} 22. Nec3 {[%emt 0:10:09]} g5 {[%emt 0:01:35]} 23. Nd1 $1 {[%emt 0:02:04]} Ba7 {[%emt 0:00:13]} 24. Nb2 {[%emt 0:01:50]} g4 {[%emt 0:01:50]} 25. c4 {[%emt 0:01:47]} gxf3 {[%emt 0:00:38]} 26. gxf3 {[%emt 0:06:10]} Bh3 {[%emt 0:00:30]} (26... Bd7 $14) 27. Rfd1 {[%emt 0:00:30]} Rf7 {[%emt 0:01:52]} 28. Bf1 {[%emt 0:01:49]} Bd7 {[%emt 0:01:42]} 29. Rd2 {[%emt 0:03:25]} ({White should try} 29. cxb5 $16 axb5 30. Nc3) 29... Bd4 {[%emt 0:02:46]} 30. Rxd4 {[%emt 0:05:26]} (30. cxb5 $18 axb5 {[#]} 31. Rxd4 $1 {[%mdl 512]} exd4 32. Nc1) 30... exd4 {[%emt 0:00:30]} 31. c5 {[%emt 0:01:24]} Re8 {[%emt 0:03:02]} 32. Re1 {[%emt 0:02:04]} Nxd5 {[%emt 0:00:49]} 33. cxd6 {[%emt 0:02:21]} Ne3 {[%emt 0:00:09]} 34. Nd3 {[%emt 0:01:22]} Be6 {[%emt 0:01:27]} 35. Nac1 {[%emt 0:00:46]} Bc4 {[%emt 0:01:43]} 36. Kg1 {[%emt 0:03:22]} Rg7+ {[%emt 0:01:24]} 37. Kh1 {[%emt 0:04:27] [#]} Kf7 {[%emt 0:01:06]} (37... Rd8 $1 $19 {is more deadly.} 38. e5 Kf7) 38. Bh3 {[%emt 0:01:00]} Be6 {[%emt 0:02:39]} 39. Bxe6+ {[%emt 0:02:12]} Rxe6 {[%emt 0:01:23]} (39... Kxe6 $11 {remains equal.} 40. Nb3 Kxd6) 40. e5 {[%emt 0:01:37]} Rg5 $16 {[%emt 0:06:52]} 41. Nb3 {[%emt 0:12:22]} Nc2 {[%emt 0:03:53]} 42. Rc1 {[%emt 0:03:34]} Reg6 {[%emt 0:01:49]} 43. Nxf4 {[%emt 0:02:33]} Rg8 {[%emt 0:02:34]} 44. e6+ {[%emt 0:03:04]} Kf6 {[%emt 0:00:27]} 45. e7 {[%emt 0:08:21]} d3 {[%emt 0:00:09]} 46. Nxd3 {[%emt 0:01:15]} Rg2 {[%emt 0:19:24]} 47. Nbc5 {[%emt 0:00:50]} Rd2 {[%emt 0:00:58]} 48. Ne4+ {[%emt 0:00:22]} 1-0

[Event "FIDE Open Sachove Univerzity QCC"]
[Site "Ceske Budejovice"]
[Date "2020.07.07"]
[Round "7.4"]
[White "Barta, David"]
[Black "Stavova, Marketa"]
[Result "1-0"]
[ECO "A20"]
[WhiteElo "1541"]
[BlackElo "1213"]
[Annotator "NA"]
[PlyCount "113"]
[EventDate "2020.07.01"]
[EventType "swiss"]
[EventCountry "CZE"]
[SourceTitle "playchess.com"]
[Source "ChessBase"]
[SourceQuality "1"]
[TimeControl "40/5400+30:1800+30"]

1. c4 {[%emt 0:00:00]} e5 {[%emt 0:00:01]} 2. e3 {[%emt 0:01:52]} c5 {[%emt 0:02:22]} 3. Nc3 {[%emt 0:01:06]} Nf6 {[%emt 0:02:07]} 4. g3 {[%emt 0:01:17]} d6 {[%emt 0:01:39]} 5. Bg2 {[%emt 0:00:26]} Nc6 {[%emt 0:00:54]} 6. Nf3 {[%emt 0:00:22]} Be7 {[%emt 0:01:11]} 7. O-O {[%emt 0:00:13]} O-O {[%emt 0:00:36]} 8. d4 {[%emt 0:00:15]} exd4 {[%emt 0:01:40]} 9. exd4 {[%emt 0:00:11]} cxd4 {[%emt 0:01:08]} 10. Nxd4 {[%emt 0:00:13]} Bd7 {[%emt 0:01:24]} 11. Bf4 {[%emt 0:01:06]} Qb6 {[%emt 0:01:52]} 12. Nxc6 {[%emt 0:02:33]} Bxc6 {[%emt 0:01:47]} 13. Bxc6 {[%emt 0:00:06]} Qxc6 {[%emt 0:00:49]} 14. Nd5 {[%emt 0:04:47]} Nxd5 {[%emt 0:01:00]} 15. Qxd5 {[%emt 0:00:05]} Qxd5 {[%emt 0:00:15]} 16. cxd5 {[%emt 0:00:06]} Rac8 {[%emt 0:01:20]} 17. Rac1 {[%emt 0:00:29]} b6 {[%emt 0:00:55]} 18. Rfe1 {[%emt 0:00:15]} Rxc1 {[%emt 0:00:44]} 19. Rxc1 {[%emt 0:00:05]} g5 {[%emt 0:00:11]} 20. Be3 {[%emt 0:00:40]} Ra8 {[%emt 0:03:19]} 21. Rc7 {[%emt 0:01:00]} Kf8 {[%emt 0:00:43]} 22. Kg2 {[%emt 0:00:46]} h6 {[%emt 0:01:04]} 23. Kf3 {[%emt 0:00:27]} Ke8 {[%emt 0:01:11]} 24. Kg4 {[%emt 0:00:27]} Bf6 {[%emt 0:00:37]} 25. b3 {[%emt 0:00:17]} Kf8 {[%emt 0:01:53]} 26. Kh5 {[%emt 0:00:40]} Kg7 {[%emt 0:01:14]} 27. Rd7 {[%emt 0:00:22]} Rb8 {[%emt 0:03:26]} 28. Rxd6 {[%emt 0:01:02]} Rb7 {[%emt 0:01:10]} 29. Kg4 {[%emt 0:04:02]} Be5 {[%emt 0:00:46]} 30. Rd8 {[%emt 0:03:30]} Bf6 {[%emt 0:02:07]} 31. Ra8 {[%emt 0:00:05]} Rd7 {[%emt 0:01:01]} 32. h3 {[%emt 0:00:57]} Kg6 {[%emt 0:00:54]} 33. Kf3 {[%emt 0:02:03]} Rxd5 {[%emt 0:01:35]} 34. Rxa7 {[%emt 0:00:13]} Rf5+ {[%emt 0:00:46]} 35. Kg2 {[%emt 0:00:38]} b5 {[%emt 0:00:41]} 36. Rc7 {[%emt 0:01:04]} b4 {[%emt 0:00:52]} 37. Rc5 {[%emt 0:00:16]} Rxc5 {[%emt 0:00:43]} 38. Bxc5 {[%emt 0:00:03]} Bc3 {[%emt 0:00:08]} 39. g4 {[%emt 0:00:26]} f6 {[%emt 0:01:06]} 40. Kf3 {[%emt 0:00:42]} Kf7 {[%emt 0:00:27]} 41. Ke4 {[%emt 0:30:19]} Kg6 {[%emt 0:31:01]} 42. Kd3 {[%emt 0:00:22]} Kf7 {[%emt 0:00:42]} 43. f3 {[%emt 0:00:11]} Ke6 {[%emt 0:00:38]} 44. Kc4 {[%emt 0:00:16]} Ke5 {[%emt 0:00:22]} 45. Bxb4 {[%emt 0:00:17]} Bxb4 {[%emt 0:00:25]} 46. Kxb4 {[%emt 0:00:03]} Kd6 {[%emt 0:00:35]} 47. Ka5 {[%emt 0:00:13]} Kc7 {[%emt 0:00:31]} 48. Ka6 {[%emt 0:00:07]} Kb8 {[%emt 0:00:21]} 49. b4 {[%emt 0:00:11]} Ka8 {[%emt 0:00:12]} 50. Kb6 {[%emt 0:00:05]} Kb8 {[%emt 0:00:42]} 51. a4 {[%emt 0:00:01]} Ka8 {[%emt 0:00:30]} 52. Kc7 {[%emt 0:00:04]} Ka7 {[%emt 0:00:25]} 53. b5 {[%emt 0:00:03]} Ka8 {[%emt 0:00:20]} 54. b6 {[%emt 0:00:04]} f5 {[%emt 0:00:08]} 55. b7+ {[%emt 0:00:08]} Ka7 {[%emt 0:00:20]} 56. b8=Q+ {[%emt 0:00:04]} Ka6 {[%emt 0:00:21]} 57. Qb6# {[%emt 0:00:02]} 1-0